[Event "Chinese Championship-B Men 2024"]
[Site "Liaocheng"]
[Date "2024.04.25"]
[Round "10.13"]
[White "Cheng, Zihan"]
[Black "Zhu, Yilun"]
[Result "1-0"]
[ECO "C77"]
[WhiteElo "1819"]
[BlackElo "2125"]
[Annotator "TA"]
[PlyCount "69"]
[EventDate "2024.04.24"]
[EventType "swiss"]
[EventCountry "CHN"]
[SourceTitle "playchess.com"]
[Source "ChessBase"]
[SourceQuality "1"]
[TimeControl "5400+30"]

{[%evp 13,69,0,0,-2,0,-13,-2,-16,0,-21,-19,-34,-21,-36,-23,-32,-22,-21,-20,-15,-21,-21,-5,-83,-8,-7,9,19,36,22,165,140,186,173,274,243,241,231,387,408,1272,1268,1088,334,326,339,309,239,233,243,242,240,822,810,1135,1018,987,969]} 1. e4 {[%emt 0:00:01]} e5 {[%emt 0:00:04]} 2. Nf3 {[%emt 0:00:16]} Nc6 {[%emt 0:00:04]} 3. Bb5 {[%emt 0:01:23]} a6 {[%emt 0:00:06]} 4. Ba4 {[%emt 0:00:03]} Nf6 {[%emt 0:00:03]} 5. Bxc6 {[%emt 0:02:36]} dxc6 {[%emt 0:00:04]} 6. d3 {[%emt 0:00:04]} Bd6 {[%emt 0:05:15]} 7. Nbd2 {[%emt 0:00:40]} Be6 {[%emt 0:01:16]} 8. Qe2 {[%emt 0:00:25]} Nd7 {[%emt 0:00:15]} 9. Nc4 {[%emt 0:04:17]} f6 {[%emt 0:00:06]} 10. Nh4 {[%emt 0:00:58] The position is equal.} g6 {[%emt 0:02:05]} 11. g3 {[%emt 0:07:24]} Qe7 {[%emt 0:00:21]} 12. Nxd6+ {[%emt 0:01:17]} cxd6 {[%emt 0:01:51]} 13. a4 {[%emt 0:04:24]} d5 {[%emt 0:03:25]} 14. b3 {[%emt 0:05:45]} Qb4+ {[%emt 0:03:04]} 15. Bd2 {[%emt 0:04:23]} Qc5 {[%emt 0:00:04]} 16. Rc1 {[%emt 0:01:42]} b5 {[%emt 0:02:21]} 17. b4 {[%emt 0:02:44]} Qe7 {[%emt 0:00:13]} 18. a5 {[%emt 0:01:35] [#]} (18. O-O $11) 18... c5 {[%emt 0:00:42]} (18... dxe4 $1 $17 19. O-O Bd5) 19. O-O $11 {[%emt 0:04:07]} d4 {[%emt 0:10:51]} 20. bxc5 {[%emt 0:03:23]} Nxc5 {[%emt 0:00:14]} 21. Bb4 {[%emt 0:00:41] Threatens to win with c3.} Qa7 {[%emt 0:00:27] Loses the game.} (21... Rc8 $1 $11) 22. f4 $18 {[%emt 0:00:53] Hoping for fxe5.} exf4 (22... O-O $16 {was worth a try.}) 23. Rxf4 {[%emt 0:03:42]} Nd7 {[%emt 0:15:12] [#]} (23... O-O $142 24. Rcf1 Rfe8 25. Nxg6 (25. Rxf6 Nd7 $18) 25... hxg6) 24. Nf5 $1 {[%emt 0:03:52][%mdl 512]} Kf7 {[%emt 0:01:48] Dodges Ng7} (24... gxf5 $2 25. exf5 O-O-O 26. fxe6 $18) 25. Rcf1 {[%emt 0:04:21]} (25. Nd6+ Kg7 $16) 25... Rhd8 $2 {[%emt 0:18:15]} (25... gxf5 $2 {perishes.} 26. exf5 Ke8 27. fxe6 $18 (27. Qxe6+ Kd8 $18)) (25... Bxf5 26. exf5 Rhe8 27. fxg6+ hxg6) 26. Rh4 {[%emt 0:09:51]} Kg8 {[%emt 0:01:56]} (26... h5 $142 27. Ne7 Re8) 27. Ne7+ {[%emt 0:07:34]} Kg7 {[%emt 0:00:05]} 28. Nc6 $2 {[%emt 0:03:56]} (28. e5 {Threatening mate with exf6+.} Nxe5 29. Rxh7+ Kxh7 30. Rxf6) 28... Qc7 {[%emt 0:00:02]} 29. Nxd4 {[%emt 0:04:30]} ({But not} 29. Nxd8 $6 Rxd8 30. Qd2 h5 $18) 29... Bg8 {[%emt 0:01:21]} 30. Rhf4 {[%emt 0:03:23]} Re8 {[%emt 0:01:50]} 31. Qf2 {[%emt 0:00:26][%cal Rf4f6]} Kh8 {[%emt 0:02:20]} 32. Ne2 {[%emt 0:01:33] And now Rxf6 would win.} Qxc2 $2 {[%emt 0:03:26]} (32... Re6 33. Nd4 Ree8 34. Rxf6 Nxf6) 33. Rxf6 {[%emt 0:01:12] White is clearly winning.} Rac8 {[%emt 0:02:08] [#]} 34. Qd4 $1 {[%emt 0:01:22] White threatens Re6+ and mate.} Ne5 {[%emt 0:00:02]} 35. Bd6 {[%emt 0:00:54] Weighted Error Value: White=0.37/Black=0.31.  Mistake:       	White=1     	Black=7      Inaccurate:     	---       	Black=1      OK:         	White=12    	Black=7      Best:        	White=2     	Black=2} 1-0

[Event "Chinese Championship-B Men 2024"]
[Site "Liaocheng"]
[Date "2024.04.25"]
[Round "10.14"]
[White "Zhou, Yuxu"]
[Black "Zhang, Zhi"]
[Result "0-1"]
[ECO "B07"]
[WhiteElo "1789"]
[BlackElo "1987"]
[Annotator "TA"]
[PlyCount "84"]
[EventDate "2024.04.24"]
[EventType "swiss"]
[EventCountry "CHN"]
[SourceTitle "playchess.com"]
[Source "ChessBase"]
[SourceQuality "1"]
[TimeControl "5400+30"]

{[%evp 21,84,40,51,48,49,41,41,42,56,0,0,0,0,0,12,-54,-31,-29,-16,-25,-12,-25,-4,-21,-32,-34,-27,-27,-29,-64,-20,-60,-59,-62,-47,-47,-55,-62,-62,-62,-62,-126,-80,-196,-162,-173,-175,-182,-183,-175,-154,-306,-298,-1418,-1368,-1354,-1244,-1179,-1356,-1569,-1178,-1317,-1218,-987,-954]} 1. e4 {[%emt 0:00:01]} d6 {[%emt 0:01:02]} 2. d4 {[%emt 0:00:12]} Nf6 {[%emt 0:00:02]} 3. Nc3 {[%emt 0:00:05]} e5 {[%emt 0:00:05]} 4. dxe5 {[%emt 0:09:51]} dxe5 {[%emt 0:00:03]} 5. Qxd8+ {[%emt 0:00:05]} Kxd8 {[%emt 0:00:06]} 6. Nf3 {[%emt 0:00:04][%cal Bg1f3,Bf3d2,Bd2b3][%mdl 32]} Bd6 {[%emt 0:03:32]} 7. Bc4 {[%emt 0:00:15]} Be6 {[%emt 0:00:02]} 8. Bxe6 {[%emt 0:00:08]} fxe6 {[%emt 0:00:02]} 9. Be3 {[%emt 0:02:36]} a6 {[%emt 0:00:29]} 10. O-O-O {[%emt 0:04:33]} Ke7 {[%emt 0:00:02]} 11. Nd2 {[%emt 0:03:47]} Nc6 {[%emt 0:01:35]} 12. f3 {[%emt 0:03:24] Against Ng4} h6 {[%emt 0:01:46]} 13. h4 {[%emt 1:11:59]} b5 {[%emt 0:01:28]} 14. Nb3 {[%emt 0:00:00] White is slightly better.} Rhb8 {[%emt 0:03:22]} 15. Rd2 {[%emt 0:00:00]} ({Better is} 15. Kb1 $14) 15... Nd7 $1 $11 {[%emt 0:01:24]} 16. Rhd1 {[%emt 0:00:00]} Nb6 {[%emt 0:02:03]} 17. Bxb6 Rxb6 {[%emt 0:00:01]} 18. g3 {[%emt 0:00:00]} ({White should play} 18. Kb1 $11) 18... Rf8 {[%emt 0:00:58]} 19. Rf2 {[%emt 0:00:00]} Rbb8 {[%emt 0:05:14]} 20. Rdf1 {[%emt 0:00:00]} g5 {[%emt 0:01:28]} 21. hxg5 hxg5 {[%emt 0:00:02][%cal Og5g4]} 22. Ne2 {[%emt 0:00:00]} Rf7 {[%emt 0:01:56]} 23. f4 {[%emt 0:00:00]} Rbf8 {[%emt 0:03:17]} 24. f5 {[%emt 0:00:00]} g4 {[%emt 0:00:13]} 25. Kd1 {[%emt 0:00:00]} a5 {[%emt 0:01:42][%cal Ba6a5,Ba5a4][%mdl 32]} 26. f6+ {[%emt 0:00:00]} Rxf6 {[%emt 0:00:36]} 27. Rxf6 {[%emt 0:00:00]} Rxf6 {[%emt 0:00:03]} 28. Rxf6 {[%emt 0:00:00]} Kxf6 $15 {[%emt 0:00:06][%mdl 4096] Endgame. KBN-KNN} 29. c3 {[%emt 0:00:00]} a4 {[%emt 0:05:23]} 30. Nd2 {[%emt 0:00:00]} Bc5 {[%emt 0:00:32]} 31. Kc2 {[%emt 0:00:00]} (31. b3 $15) 31... Nb8 {[%emt 0:02:36] Black is more active.} (31... Na5 $142 {aiming for ...Bf2.} 32. Nc1 Bf2) 32. Kd3 {[%emt 0:00:00]} (32. Nc1 $17) 32... Nd7 {[%emt 0:00:12]} 33. b4 {[%emt 0:00:00] [#]} axb3 $1 {[%emt 0:01:00]} 34. axb3 {[%emt 0:00:00]} Bf2 {[%emt 0:00:05] Threatens to win with ...Nc5+.} 35. b4 {[%emt 0:03:04]} c5 {[%emt 0:01:44]} 36. Kc2 $2 {[%emt 0:01:28]} (36. c4 $17) 36... c4 $19 {[%emt 0:05:04]} 37. Nf1 $2 {[%emt 0:00:08]} (37. Nb1 Kg5 38. Na3) 37... Kg6 {[%emt 0:01:29] Black is clearly winning.} 38. Nd2 {[%emt 0:02:43]} Nf6 {[%emt 0:00:03] Hoping for ...Kh6.} 39. Kd1 {[%emt 0:00:24]} Kg5 {[%emt 0:00:04]} 40. Kc2 {[%emt 0:01:10]} Be1 {[%emt 0:00:07] [#] Strongly threatening ...Bxd2.} 41. Nf1 {[%emt 0:00:29]} Nxe4 {[%emt 0:00:09]} 42. Kb2 {[%emt 0:00:19]} Nf6 {[%emt 0:00:20] Weighted Error Value: White=0.46/Black=0.07 (flawless) .  Mistake:       	White=6     	Black=1      Inaccurate:     	White=2     	Black=1      OK:         	White=7     	Black=7      Strong:       	---       	Black=2} 0-1

[Event "Chinese Championship-B Men 2024"]
[Site "Liaocheng"]
[Date "2024.04.25"]
[Round "10.15"]
[White "Qu, Haoming"]
[Black "Shen, Chenyi"]
[Result "1/2-1/2"]
[ECO "C07"]
[WhiteElo "1786"]
[BlackElo "1974"]
[Annotator "TA"]
[PlyCount "175"]
[EventDate "2024.04.24"]
[EventType "swiss"]
[EventCountry "CHN"]
[SourceTitle "playchess.com"]
[Source "ChessBase"]
[SourceQuality "1"]
[TimeControl "5400+30"]

{[%evp 54,175,21,32,36,17,15,23,14,20,25,25,20,31,33,15,48,39,64,37,58,48,55,83,67,79,109,113,116,119,127,119,223,220,216,231,220,219,200,166,139,110,89,90,93,84,110,90,184,173,493,89,87,87,153,146,162,161,139,91,88,89,126,8,8,8,8,8,8,8,8,8,8,0,8,8,356,293,224,-8,777,776,768,741,666,637,631,0,464,0,8,8,8,8,8,8,8,8,200,8,8,0,0,-8,0,-8,-8,-8,-8,-8,-8,-8,-8,-8,-8,-8,-8,-8,-8,-8,-8,-8,8,8]} 1. e4 {[%emt 0:00:03]} e6 {[%emt 0:03:17]} 2. d4 {[%emt 0:00:20]} d5 {[%emt 0:00:03]} 3. Nd2 {[%emt 0:00:14]} c5 {[%emt 0:00:16]} 4. exd5 {[%emt 0:00:17]} Qxd5 {[%emt 0:00:48]} 5. dxc5 {[%emt 0:00:47]} Nf6 {[%emt 0:00:50]} 6. Ngf3 {[%emt 0:00:25] C07: French Tarrasch: 3...c5, 4 Ngf3 and 4 exd5 Qxd5.} Qxc5 {[%emt 0:02:37]} 7. Bd3 {[%emt 0:02:37]} Nbd7 {[%emt 0:01:00] The main line 7...Nbd7 scores better than 7...Be7.} 8. O-O {[%emt 0:01:46]} Bd6 {[%emt 0:00:48]} 9. Qe2 {[%emt 0:01:59]} O-O {[%emt 0:08:20]} 10. Rd1 $146 {[%emt 0:02:47]} ({Predecessor:} 10. Nc4 Bc7 11. b4 Qh5 12. Bb2 b5 13. Ncd2 a6 14. Ne4 Bb7 15. Ng3 Bxf3 16. Nxh5 Bxe2 17. Nxf6+ Nxf6 18. Bxe2 {1-0 Viera,J (1600)-Torres,R (1992) Uniagraria AlphaZero op 2nd 2019 (7)}) 10... Ne5 {[%emt 0:08:00]} 11. Nxe5 {[%emt 0:00:27]} Qxe5 {[%emt 0:12:27]} 12. Qxe5 Bxe5 {[%emt 0:00:05]} 13. Nf3 {[%emt 0:08:12]} Bc7 {[%emt 0:00:05]} 14. Bg5 {[%emt 0:00:13]} Rd8 {[%emt 0:06:00]} 15. c3 {[%emt 0:02:00]} Bd7 {[%emt 0:02:35]} 16. Nd4 {[%emt 0:03:13]} Be5 {[%emt 0:03:15]} 17. Be2 {[%emt 0:03:08]} h6 {[%emt 0:00:30]} 18. Bh4 {[%emt 0:00:27]} Ba4 {[%emt 0:14:41]} 19. Nb3 {[%emt 0:00:20]} g5 {[%emt 0:01:03]} 20. Bg3 {[%emt 0:00:13]} Bxg3 21. hxg3 {[%emt 0:00:05]} e5 {[%emt 0:00:54]} 22. Kf1 {[%emt 0:02:08]} Kf8 {[%emt 0:01:54]} 23. f3 {[%emt 0:03:59]} Ne8 {[%emt 0:08:07]} 24. Kf2 {[%emt 0:11:00]} Rd6 {[%emt 0:01:20]} 25. Rxd6 {[%emt 0:00:47]} Nxd6 {[%emt 0:00:04]} 26. Nc5 {[%emt 0:00:08]} Bc6 {[%emt 0:00:08]} 27. Rh1 {[%emt 0:00:38]} Kg7 {[%emt 0:00:09]} 28. Rd1 {[%emt 0:01:04]} Rd8 {[%emt 0:00:16]} 29. Nd3 {[%emt 0:03:04]} f6 {[%emt 0:01:02]} 30. Nb4 {[%emt 0:00:07]} Be8 {[%emt 0:02:41]} 31. Nd5 {[%emt 0:00:46]} Bf7 {[%emt 0:02:24]} 32. Ne3 {[%emt 0:01:02]} Be6 {[%emt 0:01:23]} (32... Bxa2 $2 33. Rxd6 (33. Nf5+ Nxf5 34. Rxd8 Be6 $18) 33... Rxd6 34. Nf5+ Kf8 35. Nxd6 $18) 33. g4 {[%emt 0:04:04]} Kf7 {[%emt 0:03:30]} 34. Bd3 {[%emt 0:06:46]} Ke7 {[%emt 0:00:30]} 35. Ke2 {[%emt 0:00:24]} Rh8 {[%emt 0:00:26]} 36. Rh1 {[%emt 0:01:43]} Bf7 {[%emt 0:00:30]} 37. b3 {[%emt 0:01:18]} b6 {[%emt 0:00:22]} 38. c4 {[%emt 0:01:05]} Be6 {[%emt 0:03:41]} 39. Kd2 {[%emt 0:00:58]} Kf7 {[%emt 0:06:45]} 40. Kc3 {[%emt 0:01:01]} Kg7 {[%emt 0:00:03]} 41. Rd1 {[%emt 0:00:28]} h5 {[%emt 0:02:57]} 42. Bc2 {[%emt 0:00:14]} Nb7 {[%emt 0:00:59]} (42... Nc8 $16 43. gxh5 Rxh5) 43. gxh5 $1 $18 {[%emt 0:00:15]} Rxh5 {[%emt 0:00:03]} 44. b4 {[%emt 0:00:04]} Rh8 {[%emt 0:01:17]} 45. Be4 {[%emt 0:00:25]} Rb8 {[%emt 0:00:07]} 46. a3 {[%emt 0:04:33]} Kf8 {[%emt 0:01:25]} 47. Rh1 {[%emt 0:00:14]} Nd6 {[%emt 0:01:22]} 48. Bd5 {[%emt 0:36:42]} Bxd5 {[%emt 0:01:08]} 49. Nxd5 {[%emt 0:00:30]} Rc8 {[%emt 0:00:04]} 50. Rh8+ {[%emt 0:00:00]} (50. Nxf6 Kg7 51. Ne4 Rxc4+ 52. Kd3 (52. Kb3 Rd4 $11) 52... Rd4+ 53. Ke3 Nxe4 (53... Nc4+ 54. Ke2 $11) 54. fxe4 Rc4 $11) 50... Kf7 {[%emt 0:00:04]} (50... Kg7 $16 {is a better defense.} 51. Rxc8 Nxc8) 51. Rh7+ $1 $18 {[%emt 0:00:00]} (51. Rxc8 $6 Nxc8 52. Nc7 Ke7 $14) 51... Kg6 $2 {[%emt 0:00:22]} (51... Kf8) 52. Rc7 $2 {[%emt 0:00:00]} (52. Rxa7 $2 Nb5+ (52... Nxc4 $2 53. Ne7+ Kh6 54. Nxc8 $18) (52... Rxc4+ 53. Kb3 $16) 53. Kd3 Nxa7 $19) (52. Rd7 $1 $18 {[%cal Rd7d6] is the precise move to win.} Rxc4+ 53. Kb3) 52... Rxc7 $16 {[%emt 0:00:53]} 53. Nxc7 {[%emt 0:00:00]} Nb7 {[%emt 0:02:00]} ({Black should try} 53... Kf7) 54. Nb5 $1 $16 {[%emt 0:00:00]} a5 {[%emt 0:00:52]} 55. Nc7 {[%emt 0:00:00]} axb4+ {[%emt 0:01:03]} 56. axb4 {[%emt 0:00:00]} (56. Kxb4 $142 f5 57. Nd5) 56... Nd6 $16 {[%emt 0:00:19]} 57. Nd5 {[%emt 0:00:00]} Nc8 {[%emt 0:00:03]} 58. c5 {[%emt 0:00:00]} (58. Ne3 $16) 58... bxc5 $11 {[%emt 0:00:03]} 59. bxc5 {[%emt 0:00:00]} Kf5 {[%emt 0:00:28]} 60. Kc4 {[%emt 0:00:00]} Ke6 {[%emt 0:00:28]} 61. Nc3 {[%emt 0:00:00]} Na7 {[%emt 0:01:18]} 62. Ne4 {[%emt 0:00:00]} Nc6 {[%emt 0:00:51]} 63. Nc3 {[%emt 0:00:00]} f5 {[%emt 0:00:23]} 64. Kb5 {[%emt 0:00:00]} Nd4+ $2 {[%emt 0:00:13][%mdl 8192]} (64... Ne7 $11 {and Black has nothing to worry.}) 65. Kb6 $18 {[%emt 0:00:00]} Kd7 {[%emt 0:00:42]} 66. g4 $2 {[%emt 0:00:00]} (66. Nd5 $1 $18) 66... f4 $2 {[%emt 0:00:44][%mdl 8192] [#]} (66... Nxf3 67. c6+ (67. gxf5 Nd4 $11) 67... Kd8 68. gxf5 Nd2 69. Kb7 Ke7 70. c7 Nc4 71. Nd5+ (71. c8=R Nd6+ 72. Kc7 Nxc8 $11) 71... Kd6 72. c8=Q (72. c8=R Kxd5 73. Rxc4 Kxc4 $18)) (66... e4 $11 67. fxe4 fxg4) 67. Ne4 $1 $18 {[%emt 0:00:00]} Ne6 {[%emt 0:00:27] [#]} 68. c6+ $1 {[%emt 0:00:00]} Kc8 {[%emt 0:00:09]} 69. Nd6+ {[%emt 0:00:00]} Kb8 {[%emt 0:00:03]} 70. Ne4 {[%emt 0:00:00]} Kc8 {[%emt 0:00:10]} 71. Nf6 $2 {[%emt 0:00:00]} ({Only move:} 71. Nd2 $18) 71... Nd4 {[%emt 0:00:19]} 72. Nd5 {[%emt 0:00:00]} Ne6 $1 {[%emt 0:00:29]} 73. c7 {[%emt 0:00:00]} Kd7 {[%emt 0:00:21]} 74. Nf6+ {[%emt 0:00:00]} Kc8 {[%emt 0:00:04]} 75. Ne4 {[%emt 0:00:00]} Nxc7 $2 {[%emt 0:00:20]} (75... Kd7 $1 $11 {and Black is okay.}) 76. Nxg5 $2 {[%emt 0:00:00]} ({White must play} 76. Kc6 $1 $18) 76... Kd7 $11 {[%emt 0:00:13]} 77. Ne4 {[%emt 0:00:00]} Ne6 {[%emt 0:00:16]} 78. g5 {[%emt 0:00:00]} Nd4 {[%emt 0:01:02]} 79. g6 {[%emt 0:00:00]} Ke7 {[%emt 0:00:06]} 80. Kc5 {[%emt 0:00:00]} Nxf3 {[%emt 0:00:29]} 81. Kd5 {[%emt 0:00:00]} Kf8 {[%emt 0:02:31]} 82. Ke6 {[%emt 0:00:00]} Kg7 {[%emt 0:00:24]} 83. Kf5 {[%emt 0:00:00]} Nh4+ {[%emt 0:00:58]} 84. Kxe5 {[%emt 0:00:00]} Nxg6+ {[%emt 0:00:03]} 85. Kf5 {[%emt 0:00:00]} Ne7+ {[%emt 0:00:05]} 86. Kxf4 {[%emt 0:00:00]} Ng6+ {[%emt 0:00:12]} 87. Ke3 {[%emt 0:00:00]} Nf4 {[%emt 0:00:02]} 88. Kxf4 {[%emt 0:00:00]} 1/2-1/2

[Event "Chinese Championship-B Men 2024"]
[Site "Liaocheng"]
[Date "2024.04.26"]
[Round "11.1"]
[White "Zhang, Zhi"]
[Black "Zhang, Ziji"]
[Result "1/2-1/2"]
[ECO "B22"]
[WhiteElo "1987"]
[BlackElo "2392"]
[Annotator "TA"]
[PlyCount "161"]
[EventDate "2024.04.24"]
[EventType "swiss"]
[EventCountry "CHN"]
[SourceTitle "playchess.com"]
[Source "ChessBase"]
[SourceQuality "1"]
[TimeControl "5400+30"]

{[%evp 11,161,14,9,-23,-9,-26,-20,-26,-18,-60,-69,-75,-63,-81,-78,-122,-129,-131,-139,-170,-130,-150,-164,-160,-128,-131,-113,-122,-125,-140,-135,-141,-122,-116,-106,-100,-94,-103,-51,-94,-94,-85,-93,-100,-92,-166,-162,-157,-100,-135,-133,-244,-204,-271,-258,-368,-288,-256,-256,-389,-380,-416,-352,-399,-405,-354,-350,-338,-321,-344,-181,-272,-150,-154,-155,-168,-161,-169,-166,-117,-61,-63,-45,-38,-43,-27,-33,-23,-8,-8,-8,-22,-8,-89,-86,-271,-51,-278,-51,-51,-3,-4,-4,-4,-11,-271,-271,-271,-69,-69,-67,-19,-8,-10,0,-34,-19,-271,0,0,0,-271,-271,-271,-271,-271,-271,-271,-271,-271,-271,-271,-271,-412,-271,-271,-271,-271,0,-271,-271,-271,-271,-604,-271,-271,-10,-10,-10,-80,0,0]} 1. e4 {[%emt 0:00:04]} c5 {[%emt 0:00:51]} 2. c3 {[%emt 0:00:24]} e6 {[%emt 0:02:38]} 3. Nf3 {[%emt 0:00:26]} d5 {[%emt 0:00:31]} 4. exd5 {[%emt 0:00:39]} Qxd5 {[%emt 0:00:14]} 5. d4 {[%emt 0:00:27]} Nf6 {[%emt 0:00:17]} 6. Be3 {[%emt 0:01:42]} cxd4 {[%emt 0:01:09]} 7. Qxd4 {[%emt 0:05:51]} Nc6 {[%emt 0:00:44]} 8. Qxd5 {[%emt 0:00:15]} Nxd5 {[%emt 0:00:08]} 9. Bd2 {[%emt 0:00:19]} e5 {[%emt 0:04:11]} 10. Bb5 {[%emt 0:02:14]} f6 {[%emt 0:00:33]} 11. O-O {[%emt 0:08:31]} Be6 {[%emt 0:02:22]} 12. c4 {[%emt 0:05:34]} Ndb4 {[%emt 0:03:27]} 13. Bxb4 {[%emt 0:02:50]} Bxb4 {[%emt 0:00:04]} 14. a3 {[%emt 0:00:50]} Be7 {[%emt 0:00:36]} 15. b4 {[%emt 0:04:06]} a6 {[%emt 0:02:53]} 16. Bxc6+ {[%emt 0:00:10]} bxc6 {[%emt 0:00:03]} 17. c5 {[%emt 0:03:19]} O-O-O {[%emt 0:00:20] ...e4 would now be deadly.} 18. Nc3 {[%emt 0:00:51]} g5 {[%emt 0:07:09]} 19. Rfe1 {[%emt 0:08:59]} Rhe8 {[%emt 0:02:51]} 20. Ne4 {[%emt 0:05:52]} g4 {[%emt 0:04:54]} 21. Nfd2 {[%emt 0:06:19][%cal Bf3d2,Bd2f1,Bf1e3][%mdl 32]} f5 {[%emt 0:01:32][%cal Od8d3] Threatens to win with ...Rd3!} 22. Nd6+ {[%emt 0:00:02]} Bxd6 {[%emt 0:00:04]} 23. cxd6 {[%emt 0:00:08]} Rxd6 {[%emt 0:00:16]} 24. Nf1 {[%emt 0:00:21]} Bc4 {[%emt 0:09:25]} (24... Rd5 $17 25. Ne3 Rd3) 25. Ne3 {[%emt 0:07:28]} Bd3 $36 {[%emt 0:01:21][%mdl 2048] Black is in control.} 26. Rac1 {[%emt 0:01:52]} Kc7 {[%emt 0:01:27]} 27. Rc5 {[%emt 0:05:01]} h5 {[%emt 0:03:19]} 28. f4 {[%emt 0:01:02]} gxf3 $19 {[%emt 0:02:13]} (28... exf4 $6 29. Nd5+ Kd8 (29... Rxd5 30. Rxe8 Be4 31. Rxd5 $11) 30. Rxe8+ Kxe8 31. Nxf4 $15) 29. gxf3 {[%emt 0:00:02]} Kd7 {[%emt 0:01:36]} (29... f4 $142 30. Ng2 Rg6) 30. Kf2 {[%emt 0:04:32]} f4 $1 {[%emt 0:01:48]} 31. Ng2 {[%emt 0:00:24]} (31. Nc4 $17 Bxc4 32. Rxc4) 31... Rd5 {[%emt 0:00:56]} 32. Rd1 {[%emt 0:00:29]} Bc4 {[%emt 0:01:08]} 33. Ke1 {[%emt 0:02:36]} (33. Rc1 $142 Bb5 34. Rxd5+ cxd5 35. Nh4) 33... Rxd1+ {[%emt 0:00:56]} 34. Kxd1 {[%emt 0:00:02][%mdl 4096] Endgame. KRB-KRN} Rg8 {[%emt 0:03:38]} 35. Ne1 {[%emt 0:04:31]} (35. Rxc4 {only move.} Rxg2 36. h4) 35... Bd5 {[%emt 0:00:48]} 36. Ke2 {[%emt 0:01:16]} Rg1 {[%emt 0:01:55]} 37. Nd3 {[%emt 0:05:06]} Kd6 {[%emt 0:00:19]} 38. Nf2 {[%emt 0:00:05]} Ra1 {[%emt 0:02:06]} 39. Rc3 {[%emt 0:00:05]} Ra2+ {[%emt 0:00:34]} 40. Ke1 {[%emt 0:01:34]} Kc7 {[%emt 0:04:10]} (40... h4 $142 41. Kf1 Ke6) 41. Kf1 {[%emt 0:01:37]} (41. Nd3 $142) 41... Kb6 {[%emt 0:02:05]} (41... Ra1+ $19 42. Ke2 h4) 42. Nd3 $17 {[%emt 0:03:30]} Bxf3 {[%emt 0:00:51]} (42... Rxh2 43. Nxe5 Rh3 44. Kf2 $15) 43. Nxe5 {[%emt 0:00:12]} Bd5 {[%emt 0:00:18]} 44. Nd3 {[%emt 0:02:28]} f3 {[%emt 0:00:31]} (44... Rxh2 45. Nxf4 Bf7 46. Rc5 $17) 45. Nf4 {[%emt 0:00:04]} Bf7 {[%emt 0:07:47]} (45... Rxh2 $17 {And now ...h4 would win.} 46. Nxd5+ cxd5) 46. h3 $1 $15 {[%emt 0:01:35]} Kb5 {[%emt 0:00:25]} (46... h4 {simplifies} 47. Rxf3 Bc4+ 48. Kg1 Rc2) 47. Rc5+ {[%emt 0:01:35]} Ka4 {[%emt 0:00:06]} 48. Rxc6 {[%emt 0:00:37]} Kb3 {[%emt 0:02:36]} (48... Rxa3 49. Rxa6+ Kxb4 (49... Kb3 50. Rxa3+ Kxa3 51. b5 $14) 50. Rxa3 Kxa3 51. h4 $16) 49. Ne6 {[%emt 0:00:35]} Bxe6 {[%emt 0:06:10]} (49... Kxa3 50. Rxa6+ Kxb4 (50... Kb2 51. Rxa2+ Kxa2 52. Nc7 $16) 51. Rxa2 $18) 50. Rxe6 {[%emt 0:00:03]} Rxa3 $11 {[%emt 0:00:16] KR-KR} 51. Re4 {[%emt 0:02:52]} Ra4 {[%emt 0:00:54]} 52. Re3+ {[%emt 0:00:30]} (52. Re5 $1 $11 {remains equal.}) 52... Kxb4 $17 {[%emt 0:00:03]} 53. Rxf3 $2 {[%emt 0:00:05] [#]} (53. Re4+ $17 Kb5 54. Re5+ Kb6 55. Rxh5) 53... h4 $2 {[%emt 0:01:50]} (53... Ra1+ $1 $19 54. Ke2 Ra5) 54. Ke2 $2 {[%emt 0:00:25]} (54. Rf4+ $15 Kb3 55. Rf5) 54... Kc5 $2 {[%emt 0:00:27]} (54... Ra2+ $19 55. Kd1 a5) 55. Rf5+ $15 {[%emt 0:01:50]} Kd6 {[%emt 0:00:04]} (55... Kb6 $15 {deserves consideration.}) 56. Rh5 $11 {[%emt 0:00:11]} Ke6 {[%emt 0:00:29]} 57. Kd2 {[%emt 0:00:17]} Kf6 {[%emt 0:00:05]} 58. Kc2 $2 {[%emt 0:01:08][%mdl 8192] [#]} (58. Ke3 $1 $11) 58... Kg6 $1 $19 {[%emt 0:00:04]} 59. Rh8 {[%emt 0:00:04]} Kg5 $2 {[%emt 0:00:09]} ({Black should try} 59... a5 $19 60. Rg8+ Kh7) 60. Rg8+ $15 {[%emt 0:00:11]} Kf5 {[%emt 0:00:04] ...Ra3 is the strong threat.} 61. Rh8 $1 {[%emt 0:00:30]} Rf4 {[%emt 0:00:41]} 62. Rh6 {[%emt 0:00:37]} Ra4 {[%emt 0:01:03] aiming for ...Kg5.} 63. Rh8 {[%emt 0:00:42]} a5 {[%emt 0:02:04]} 64. Kd2 $2 {[%emt 0:01:08][%mdl 8192]} (64. Kb2 $11 {and White stays safe.}) 64... Ra2+ $2 {[%emt 0:01:51]} ({Better is} 64... Kg5 $19 {Hoping for ...Ra2+.} 65. Rg8+ Kf6) 65. Ke3 $11 {[%emt 0:02:15]} Ra4 $2 {[%emt 0:00:10][%mdl 8192]} (65... Ra3+ $11 66. Ke2 Ra4 (66... Rxh3 67. Rh5+ Kg4 68. Rxa5 $11)) 66. Kd2 $19 {[%emt 0:00:34]} Kg6 {[%emt 0:00:18]} 67. Ke2 {[%emt 0:00:19]} Rb4 {[%emt 0:00:11]} 68. Ra8 {[%emt 0:00:51]} a4 {[%emt 0:00:20]} 69. Ra5 {[%emt 0:00:50]} Kf6 {[%emt 0:00:11]} 70. Kd2 {[%emt 0:00:15]} Ke6 {[%emt 0:00:08]} 71. Kc2 {[%emt 0:00:19]} Kd6 {[%emt 0:00:05]} 72. Rh5 {[%emt 0:00:14]} (72. Kd2 $142 Kc7 73. Kc3) 72... Kc6 {[%emt 0:00:10] White must now prevent ...a3.} 73. Rh6+ {[%emt 0:00:08]} Kd5 {[%emt 0:00:56]} 74. Rh5+ {[%emt 0:00:01]} Ke6 {[%emt 0:00:07]} 75. Ra5 {[%emt 0:00:07]} Rf4 {[%emt 0:00:28]} 76. Kd2 {[%emt 0:00:31]} Kd6 {[%emt 0:00:04]} 77. Rh5 $2 {[%emt 0:00:43]} (77. Kd3 Kc6 78. Kc2) 77... Kc6 {[%emt 0:00:12]} (77... a3 $142 {( -> ...a2)} 78. Kc2 Rb4 79. Rh6+ Ke5) 78. Kc2 {[%emt 0:00:51]} a3 $2 {[%emt 0:03:43]} (78... Re4 $19 {Strongly threatening ...Rc4+.} 79. Kb2 Kd6) 79. Kb1 $11 {[%emt 0:00:53]} Kd6 {[%emt 0:00:17]} 80. Ka2 {[%emt 0:00:16]} Ke6 {[%emt 0:00:06]} (80... Ra4 $17) 81. Kxa3 {[%emt 0:00:40] Weighted Error Value: White=0.38/Black=0.33.  Loses game:     	White=4     	---        Missed win:     	---       	Black=4      Mistake:       	White=8     	Black=9      Inaccurate:     	White=5     	Black=1      OK:         	White=19    	Black=25     Best:        	White=11    	Black=5      Strong:       	White=2     	Black=1} 1/2-1/2